[Event "SVK-ch GM 2018"]
[Site "Banska Stiavnica"]
[Date "2018.07.13"]
[Round "7"]
[White "Petrik, Tomas"]
[Black "Petenyi, Tamas"]
[Result "1-0"]
[ECO "B00"]
[WhiteElo "2470"]
[BlackElo "2450"]
[Annotator "ChessBase"]
[PlyCount "101"]
[EventDate "2018.07.07"]
[EventType "tourn"]
[EventCountry "SVK"]
[SourceTitle "playchess.com"]
[Source "ChessBase"]
[SourceQuality "1"]
[TimeControl "40/5400+30:1800+30"]

1. e4 {[%emt 0:00:00]} Nc6 {[%emt 0:05:08]} 2. Nf3 {[%emt 0:01:55]} Nf6 {[%emt 0:03:08]} 3. e5 {[%emt 0:03:22]} Nd5 {[%emt 0:00:36]} 4. d4 {[%emt 0:03:00]} d6 {[%emt 0:00:38]} 5. c4 {[%emt 0:04:05]} Nb6 {[%emt 0:00:09]} 6. e6 {[%emt 0:00:39]} fxe6 {[%emt 0:05:08]} 7. Nc3 {[%emt 0:05:16]} g6 {[%emt 0:08:15]} 8. h4 {[%emt 0:11:20]} Bg7 {[%emt 0:01:39]} 9. Be3 {[%emt 0:02:32]} e5 {[%emt 0:04:58]} 10. d5 {[%emt 0:01:55]} Nd4 {[%emt 0:07:41]} 11. Nxd4 {[%emt 0:02:24]} exd4 {[%emt 0:00:04]} 12. Bxd4 {[%emt 0:00:07]} Bxd4 {[%emt 0:00:19]} 13. Qxd4 {[%emt 0:00:07]} e5 {[%emt 0:00:28]} 14. dxe6 {[%emt 0:02:23]} O-O {[%emt 0:00:56]} 15. h5 {[%emt 0:11:07]} Qf6 {[%emt 0:03:23]} 16. Qxf6 {[%emt 0:02:35]} Rxf6 {[%emt 0:00:04]} 17. e7 {[%emt 0:00:06]} Re6+ {[%emt 0:01:44]} 18. Kd2 {[%emt 0:02:18]} Rxe7 {[%emt 0:00:08]} 19. hxg6 {[%emt 0:09:01]} hxg6 {[%emt 0:00:08]} 20. Bd3 {[%emt 0:00:10]} Bf5 {[%emt 0:03:18]} 21. Rh6 {[%emt 0:03:00]} Rf8 {[%emt 0:00:53]} 22. f3 {[%emt 0:05:44]} Rh7 {[%emt 0:01:18]} 23. Rxh7 {[%emt 0:04:31]} Kxh7 {[%emt 0:00:06]} 24. Re1 {[%emt 0:00:09]} Kg7 {[%emt 0:00:14]} 25. Re7+ {[%emt 0:04:51]} Rf7 {[%emt 0:00:31]} 26. Rxf7+ {[%emt 0:00:39]} Kxf7 {[%emt 0:00:01]} 27. Nb5 {[%emt 0:00:12]} Na8 {[%emt 0:10:24]} 28. Bxf5 {[%emt 0:13:45]} gxf5 {[%emt 0:03:48]} 29. Nxa7 {[%emt 0:00:36]} c6 {[%emt 0:01:32]} 30. Ke3 {[%emt 0:01:49]} Ke6 {[%emt 0:04:33]} 31. b3 {[%emt 0:02:22]} Nb6 {[%emt 0:02:46]} 32. a4 {[%emt 0:00:06]} Nd7 {[%emt 0:02:08]} 33. a5 {[%emt 0:00:41]} c5 {[%emt 0:03:40]} 34. g4 {[%emt 0:03:08]} fxg4 {[%emt 0:03:52]} 35. fxg4 {[%emt 0:00:02]} Ne5 {[%emt 0:00:27]} 36. g5 {[%emt 0:00:06]} d5 {[%emt 0:02:27]} 37. cxd5+ {[%emt 0:00:21]} Kxd5 {[%emt 0:00:01]} 38. Kf4 {[%emt 0:01:14]} c4 {[%emt 0:02:01]} 39. bxc4+ {[%emt 0:00:55]} Nxc4 {[%emt 0:00:02]} 40. g6 {[%emt 0:00:51]} Ke6 {[%emt 0:03:35]} 41. Kg5 {[%emt 0:06:00]} Ne5 {[%emt 0:02:01]} 42. g7 {[%emt 0:10:21]} Kf7 {[%emt 0:00:06]} 43. Kh6 {[%emt 0:00:10]} Kg8 {[%emt 0:00:19]} 44. Nc8 {[%emt 0:01:57]} Nf7+ {[%emt 0:02:44]} 45. Kg6 {[%emt 0:00:08]} Ne5+ {[%emt 0:00:05]} 46. Kf5 {[%emt 0:01:36]} Nd7 {[%emt 0:02:27]} 47. Nb6 {[%emt 0:00:28]} Nc5 {[%emt 0:02:35]} 48. Kf6 {[%emt 0:03:46]} Ne4+ {[%emt 0:06:43]} 49. Kg6 {[%emt 0:00:07]} Nc3 {[%emt 0:01:03]} 50. Nd7 {[%emt 0:00:12]} Nd5 {[%emt 0:00:06]} 51. Nf6+ {[%emt 0:00:06]} 1-0

[Event "SVK-ch GM 2018"]
[Site "Banska Stiavnica"]
[Date "2018.07.13"]
[Round "7"]
[White "Manik, Mikulas"]
[Black "Mazur, Stefan"]
[Result "1/2-1/2"]
[ECO "C45"]
[WhiteElo "2400"]
[BlackElo "2425"]
[Annotator "NA"]
[PlyCount "59"]
[EventDate "2018.07.07"]
[EventType "tourn"]
[EventCountry "SVK"]
[SourceTitle "playchess.com"]
[Source "ChessBase"]
[SourceQuality "1"]
[TimeControl "40/5400+30:1800+30"]

1. e4 {[%emt 0:05:41]} e5 {[%emt 0:00:00]} 2. Nf3 {[%emt 0:00:20]} Nc6 {[%emt 0:00:00]} 3. d4 {[%emt 0:00:11]} exd4 {[%emt 0:00:10]} 4. Nxd4 {[%emt 0:00:06]} Nf6 {[%emt 0:00:46]} 5. Nxc6 {[%emt 0:01:21]} bxc6 {[%emt 0:00:05]} 6. e5 {[%emt 0:00:10]} Qe7 {[%emt 0:00:25]} 7. Qe2 {[%emt 0:00:10]} Nd5 {[%emt 0:00:17]} 8. c4 {[%emt 0:00:18]} Ba6 {[%emt 0:02:35]} 9. b3 {[%emt 0:04:16]} g6 {[%emt 0:01:57]} 10. Bb2 {[%emt 0:01:17]} Bg7 {[%emt 0:00:22]} 11. g3 {[%emt 0:01:19]} O-O {[%emt 0:00:26]} 12. Bg2 {[%emt 0:01:14]} Rae8 {[%emt 0:05:16]} 13. O-O {[%emt 0:01:02]} Bxe5 {[%emt 0:00:21]} 14. Qxe5 {[%emt 0:00:39]} Qxe5 {[%emt 0:00:08]} 15. Bxe5 {[%emt 0:00:06]} Rxe5 {[%emt 0:00:08]} 16. cxd5 {[%emt 0:00:11]} Bxf1 {[%emt 0:00:06]} 17. Kxf1 {[%emt 0:00:10]} cxd5 {[%emt 0:00:14]} 18. Nc3 {[%emt 0:03:23]} c6 {[%emt 0:00:17]} 19. Rd1 {[%emt 0:02:37]} Rb8 {[%emt 0:04:56]} 20. Bf3 {[%emt 0:06:06]} a5 {[%emt 0:07:17]} 21. Na4 {[%emt 0:02:07]} Kf8 {[%emt 0:01:17]} 22. Nc5 {[%emt 0:04:58]} Ke7 {[%emt 0:00:32]} 23. Rc1 {[%emt 0:01:32]} Kd6 {[%emt 0:01:38]} 24. Rc2 {[%emt 0:01:42]} Re7 {[%emt 0:03:22]} 25. Rc1 {[%emt 0:03:51]} Ree8 {[%emt 0:03:15]} 26. Rc2 {[%emt 0:00:49]} Re7 {[%emt 0:00:33]} 27. Rc1 {[%emt 0:00:18]} Ree8 {[%emt 0:01:01]} 28. Rc2 {[%emt 0:00:16]} Re7 {[%emt 0:00:32]} 29. Rc1 {[%emt 0:00:21]} Ree8 {[%emt 0:00:05]} 30. Rc2 {[%emt 0:00:05]} 1/2-1/2

[Event "SVK-ch GM 2018"]
[Site "Banska Stiavnica"]
[Date "2018.07.14"]
[Round "8"]
[White "Gazik, Viktor"]
[Black "Petrik, Tomas"]
[Result "0-1"]
[ECO "E14"]
[WhiteElo "2501"]
[BlackElo "2470"]
[Annotator "ChessBase"]
[PlyCount "108"]
[EventDate "2018.07.07"]
[EventType "tourn"]
[EventCountry "SVK"]
[SourceTitle "playchess.com"]
[Source "ChessBase"]
[SourceQuality "1"]
[TimeControl "40/5400+30:1800+30"]

1. d4 {[%emt 0:00:00]} e6 {[%emt 0:01:28]} 2. Nf3 {[%emt 0:00:00]} Nf6 {[%emt 0:00:10]} 3. Nbd2 {[%emt 0:00:16]} c5 {[%emt 0:02:01]} 4. e3 cxd4 {[%emt 0:06:52]} 5. exd4 {[%emt 0:00:15]} b6 {[%emt 0:00:29]} 6. Bd3 {[%emt 0:02:46]} Bb7 {[%emt 0:00:10]} 7. O-O {[%emt 0:00:25]} Be7 {[%emt 0:00:59]} 8. b3 {[%emt 0:00:55]} O-O {[%emt 0:01:05]} 9. Bb2 {[%emt 0:00:07]} Nc6 {[%emt 0:01:41]} 10. a3 {[%emt 0:00:51]} Rc8 {[%emt 0:01:05]} 11. Re1 {[%emt 0:04:26]} Re8 {[%emt 0:01:56]} 12. Rc1 {[%emt 0:01:19]} Bf8 {[%emt 0:01:06]} 13. c4 {[%emt 0:01:20]} d5 {[%emt 0:01:22]} 14. c5 {[%emt 0:05:52]} a5 {[%emt 0:02:41]} 15. Bb5 {[%emt 0:22:59]} Nd7 {[%emt 0:04:02]} 16. b4 {[%emt 0:02:21]} axb4 {[%emt 0:03:34]} 17. Bxc6 {[%emt 0:02:13]} Bxc6 {[%emt 0:00:15]} 18. axb4 {[%emt 0:00:05]} Qc7 {[%emt 0:04:00]} 19. Qb3 {[%emt 0:16:27]} Rb8 {[%emt 0:35:28]} 20. Qc3 {[%emt 0:01:57]} bxc5 {[%emt 0:05:52]} 21. dxc5 {[%emt 0:00:09]} e5 {[%emt 0:02:38]} 22. Nxe5 {[%emt 0:09:03]} Nxe5 {[%emt 0:00:36]} 23. Rxe5 {[%emt 0:00:07]} Rxe5 {[%emt 0:00:10]} 24. Qxe5 {[%emt 0:00:08]} Qxe5 {[%emt 0:00:16]} 25. Bxe5 {[%emt 0:00:04]} Rxb4 {[%emt 0:00:07]} 26. h3 {[%emt 0:11:06]} f6 {[%emt 0:05:27]} 27. Bc3 {[%emt 0:05:32]} Ra4 {[%emt 0:06:45]} 28. Nb3 {[%emt 0:05:00]} Rc4 {[%emt 0:01:21]} 29. Na5 {[%emt 0:05:41]} Rxc5 {[%emt 0:00:21]} 30. Nb3 {[%emt 0:00:08]} Rc4 {[%emt 0:00:16]} 31. Na5 {[%emt 0:00:11]} Rc5 {[%emt 0:07:43]} 32. Nb3 {[%emt 0:00:07]} Rc4 {[%emt 0:00:03]} 33. Na5 {[%emt 0:00:21]} Ba3 {[%emt 0:00:17]} 34. Nxc4 {[%emt 0:01:16]} Bxc1 {[%emt 0:00:06]} 35. Ne3 {[%emt 0:00:11]} Kf7 {[%emt 0:01:43]} 36. Bd4 {[%emt 0:01:04]} Ke6 {[%emt 0:00:27]} 37. f4 {[%emt 0:01:19]} Bb5 {[%emt 0:02:20]} 38. Kf2 {[%emt 0:01:20]} Bd3 {[%emt 0:00:11]} 39. g4 {[%emt 0:00:54]} Ba3 {[%emt 0:01:21]} 40. g5 {[%emt 0:01:03]} fxg5 {[%emt 0:01:03]} 41. fxg5 {[%emt 0:30:18]} g6 {[%emt 0:04:14]} 42. h4 {[%emt 0:00:00]} Bf5 {[%emt 0:04:42]} 43. Ng2 {[%emt 0:00:00]} Bd6 {[%emt 0:01:04]} 44. h5 {[%emt 0:00:00]} gxh5 {[%emt 0:02:45]} 45. Ke3 {[%emt 0:00:00]} Bg3 {[%emt 0:11:15]} 46. Nf4+ {[%emt 0:00:00]} Bxf4+ {[%emt 0:00:39]} 47. Kxf4 {[%emt 0:00:00]} h4 {[%emt 0:00:07]} 48. Bg1 {[%emt 0:02:33]} h3 {[%emt 0:01:08]} 49. Ke3 {[%emt 0:00:10]} Be4 {[%emt 0:00:46]} 50. Bh2 {[%emt 0:00:08]} Kf5 {[%emt 0:00:10]} 51. Bd6 {[%emt 0:00:24]} Kxg5 {[%emt 0:02:30]} 52. Bc7 {[%emt 0:00:06]} Kg4 {[%emt 0:00:05]} 53. Bd6 {[%emt 0:00:03]} Bg6 {[%emt 0:01:22]} 54. Be5 {[%emt 0:00:07]} d4+ {[%emt 0:00:55]} 0-1

[Event "SVK-ch GM 2018"]
[Site "Banska Stiavnica"]
[Date "2018.07.14"]
[Round "8"]
[White "Jurcik, Marian"]
[Black "Pechac, Jergus"]
[Result "1-0"]
[ECO "B51"]
[WhiteElo "2445"]
[BlackElo "2435"]
[Annotator "ChessBase"]
[PlyCount "75"]
[EventDate "2018.07.07"]
[EventType "tourn"]
[EventCountry "SVK"]
[SourceTitle "playchess.com"]
[Source "ChessBase"]
[SourceQuality "1"]
[TimeControl "40/5400+30:1800+30"]

1. e4 {[%emt 0:00:00]} c5 {[%emt 0:00:00]} 2. Nf3 {[%emt 0:01:19]} d6 {[%emt 0:00:00]} 3. Bb5+ {[%emt 0:01:13]} Nd7 {[%emt 0:00:00]} 4. O-O {[%emt 0:01:48]} a6 {[%emt 0:00:00]} 5. Bd3 {[%emt 0:00:14]} Ngf6 {[%emt 0:00:12]} 6. Re1 {[%emt 0:01:38]} e6 {[%emt 0:00:24]} 7. c3 {[%emt 0:00:29]} Be7 {[%emt 0:00:16]} 8. Bc2 {[%emt 0:01:28]} b5 {[%emt 0:01:28]} 9. d4 {[%emt 0:00:18]} cxd4 {[%emt 0:00:15]} 10. cxd4 {[%emt 0:00:07]} Bb7 {[%emt 0:00:12]} 11. Nbd2 {[%emt 0:04:52]} Rc8 {[%emt 0:00:46]} 12. Bd3 {[%emt 0:06:43]} O-O {[%emt 0:04:10]} 13. a4 {[%emt 0:06:05]} b4 {[%emt 0:07:54]} 14. a5 {[%emt 0:00:47]} Nb8 {[%emt 0:01:52]} 15. Qe2 {[%emt 0:04:19]} h6 {[%emt 0:10:00]} 16. Nf1 {[%emt 0:17:42]} Nh7 {[%emt 0:10:28]} 17. Bd2 {[%emt 0:04:35]} d5 {[%emt 0:01:11]} 18. e5 {[%emt 0:00:59]} Qd7 {[%emt 0:04:11]} 19. Ng3 {[%emt 0:05:19]} Kh8 {[%emt 0:01:40]} 20. h3 {[%emt 0:02:40]} Bc6 {[%emt 0:01:05]} 21. Qe3 {[%emt 0:03:08]} Bb5 {[%emt 0:01:10]} 22. Bb1 {[%emt 0:02:45]} Rg8 {[%emt 0:02:47]} 23. h4 {[%emt 0:06:34]} Nc6 {[%emt 0:03:02]} 24. Nh5 {[%emt 0:01:33]} Rcf8 {[%emt 0:01:21]} 25. Bxh7 {[%emt 0:03:19]} Kxh7 {[%emt 0:00:04]} 26. Nf6+ {[%emt 0:00:12]} Bxf6 {[%emt 0:00:04]} 27. exf6 {[%emt 0:00:05]} g5 {[%emt 0:00:15]} 28. hxg5 {[%emt 0:01:22]} Rg6 {[%emt 0:00:10]} 29. g3 {[%emt 0:05:37]} Rh8 {[%emt 0:00:34]} 30. Kg2 {[%emt 0:00:33]} Kg8 {[%emt 0:00:07]} 31. Rh1 {[%emt 0:00:51]} Qd8 {[%emt 0:00:14]} 32. Ne5 {[%emt 0:02:17]} Nxe5 {[%emt 0:00:15]} 33. Qxe5 {[%emt 0:00:02]} Bd3 {[%emt 0:00:30]} 34. Ra4 {[%emt 0:05:34]} hxg5 {[%emt 0:00:21]} 35. Rxb4 {[%emt 0:02:33]} Rxh1 {[%emt 0:04:52]} 36. Rb8 {[%emt 0:00:30]} Kh7 {[%emt 0:00:17]} 37. Rxd8 {[%emt 0:00:31]} Rgh6 {[%emt 0:00:04]} 38. Kf3 {[%emt 0:00:31]} 1-0

[Event "SVK-ch GM 2018"]
[Site "Banska Stiavnica"]
[Date "2018.07.14"]
[Round "8"]
[White "Manik, Mikulas"]
[Black "Zvarik, Martin"]
[Result "0-1"]
[ECO "C42"]
[WhiteElo "2400"]
[BlackElo "2280"]
[Annotator "NA"]
[PlyCount "52"]
[EventDate "2018.07.07"]
[EventType "tourn"]
[EventCountry "SVK"]
[SourceTitle "playchess.com"]
[Source "ChessBase"]
[SourceQuality "1"]
[TimeControl "40/5400+30:1800+30"]

1. e4 {[%emt 0:00:21]} e5 {[%emt 0:01:45]} 2. Nf3 {[%emt 0:00:02]} Nf6 {[%emt 0:00:24]} 3. Nxe5 {[%emt 0:02:35]} d6 {[%emt 0:00:10]} 4. Nf3 {[%emt 0:00:08]} Nxe4 {[%emt 0:00:04]} 5. Qe2 {[%emt 0:05:42]} Qe7 {[%emt 0:00:14]} 6. d3 $11 {[%emt 0:00:02] LiveBook: 1816 Games} Nf6 {[%emt 0:01:15]} 7. Bg5 {[%emt 0:00:18]} Qxe2+ {[%emt 0:00:06]} 8. Bxe2 {[%emt 0:00:04]} Be7 {[%emt 0:00:05]} 9. Nc3 {[%emt 0:02:57]} h6 {[%emt 0:06:26]} 10. Bh4 {[%emt 0:04:50]} Nbd7 {[%emt 0:04:11]} 11. Nd4 {[%emt 0:33:00]} a6 {[%emt 0:07:06]} 12. Nf5 {[%emt 0:01:51]} Bf8 {[%emt 0:03:48]} 13. O-O-O {[%emt 0:02:10]} g6 {[%emt 0:01:22]} 14. Ne3 {[%emt 0:13:06]} Be7 {[%emt 0:05:44]} 15. Ned5 {[%emt 0:06:08]} Bd8 {[%emt 0:08:41]} 16. Nxf6+ {[%emt 0:04:06]} Nxf6 {[%emt 0:00:25]} 17. Bf3 {[%emt 0:01:06]} c6 {[%emt 0:07:43]} 18. Rhe1+ {[%emt 0:04:05]} Be6 {[%emt 0:06:29]} 19. d4 {[%emt 0:01:46]} d5 {[%emt 0:14:14]} 20. Na4 {[%emt 0:08:42]} g5 {[%emt 0:03:39]} 21. Bg3 {[%emt 0:00:05]} g4 {[%emt 0:02:29]} 22. Be2 {[%emt 0:00:07]} Ne4 {[%emt 0:01:49]} 23. Be5 {[%emt 0:01:52]} O-O {[%emt 0:05:02]} 24. Bg3 {[%emt 0:03:53]} f5 {[%emt 0:06:39]} 25. Nc5 {[%emt 0:01:00]} Nxc5 {[%emt 0:00:28]} 26. dxc5 {[%emt 0:00:07]} f4 {[%emt 0:00:05]} 0-1

[Event "SVK-ch GM 2018"]
[Site "Banska Stiavnica"]
[Date "2018.07.15"]
[Round "9"]
[White "Nayhebaver, Martin"]
[Black "Manik, Mikulas"]
[Result "0-1"]
[ECO "B35"]
[WhiteElo "2478"]
[BlackElo "2400"]
[Annotator "RC"]
[PlyCount "74"]
[EventDate "2018.07.07"]
[EventType "tourn"]
[EventCountry "SVK"]
[SourceTitle "playchess.com"]
[Source "ChessBase"]
[SourceQuality "1"]
[TimeControl "40/5400+30:1800+30"]

1. e4 {[%emt 0:06:27]} c5 {[%emt 0:05:26]} 2. Nc3 {[%emt 0:00:26]} Nc6 {[%emt 0:00:28]} 3. Nf3 {[%emt 0:00:28]} g6 {[%emt 0:00:10]} 4. d4 {[%emt 0:00:45]} cxd4 {[%emt 0:00:01]} 5. Nxd4 {[%emt 0:00:07]} Bg7 {[%emt 0:00:02]} 6. Be3 {[%emt 0:00:30]} Nf6 {[%emt 0:00:02]} 7. Bc4 {[%emt 0:00:51]} O-O {[%emt 0:00:14]} 8. Bb3 {[%emt 0:00:26]} d6 {[%emt 0:00:02]} 9. f3 {[%emt 0:02:06]} Bd7 {[%emt 0:00:39]} 10. Qd2 {[%emt 0:01:22]} Nxd4 {[%emt 0:00:03]} 11. Bxd4 {[%emt 0:00:11]} b5 {[%emt 0:00:01]} 12. a4 {[%emt 0:01:13]} bxa4 {[%emt 0:06:44]} 13. Bxa4 {[%emt 0:01:40]} Bxa4 {[%emt 0:00:48]} 14. Rxa4 {[%emt 0:00:50]} Qb8 {[%emt 0:00:02]} 15. O-O {[%emt 0:01:46]} Rc8 {[%emt 0:03:06]} 16. Ne2 {[%emt 0:27:26]} Nd7 {[%emt 0:09:10]} 17. Bxg7 {[%emt 0:02:22]} Kxg7 {[%emt 0:00:15]} 18. b3 {[%emt 0:01:03]} Qb6+ {[%emt 0:00:57]} 19. Kh1 {[%emt 0:00:14]} Rc7 {[%emt 0:00:01]} 20. Nf4 {[%emt 0:13:55]} Nf6 {[%emt 0:00:46]} 21. Qd3 {[%emt 0:01:09]} Rac8 {[%emt 0:00:24]} 22. c4 {[%emt 0:02:45]} e5 {[%emt 0:02:29]} 23. Ne2 {[%emt 0:02:25]} Nd7 {[%emt 0:03:17]} 24. Qc3 {[%emt 0:05:27]} Rb8 {[%emt 0:06:34]} 25. b4 {[%emt 0:13:46]} Rbc8 {[%emt 0:00:09]} 26. b5 {[%emt 0:02:40]} Nc5 {[%emt 0:00:06]} 27. Ra5 {[%emt 0:01:22]} Nd3 {[%emt 0:00:47]} 28. Qxd3 {[%emt 0:07:08]} Qxa5 {[%emt 0:00:05]} 29. Qxd6 {[%emt 0:00:24]} Rxc4 {[%emt 0:00:17]} 30. Qxe5+ {[%emt 0:01:13]} Kg8 {[%emt 0:00:01]} 31. Rd1 {[%emt 0:02:18]} R4c5 {[%emt 0:03:35]} 32. Qf6 {[%emt 0:00:41]} Rxb5 {[%emt 0:00:48]} 33. Nd4 {[%emt 0:00:33]} Qd2 {[%emt 0:02:03]} 34. Rg1 {[%emt 0:00:24]} Rb6 {[%emt 0:01:01]} 35. Qe5 {[%emt 0:00:21]} Qc3 {[%emt 0:00:14]} 36. h4 {[%emt 0:00:43]} Rd8 {[%emt 0:00:13]} 37. Rd1 {[%emt 0:00:31]} Rbd6 {[%emt 0:00:02]} 0-1

[Event "SVK-ch GM 2018"]
[Site "Banska Stiavnica"]
[Date "2018.07.15"]
[Round "9"]
[White "Petrik, Tomas"]
[Black "Jurcik, Marian"]
[Result "1/2-1/2"]
[ECO "C50"]
[WhiteElo "2470"]
[BlackElo "2445"]
[Annotator "ChessBase"]
[PlyCount "33"]
[EventDate "2018.07.07"]
[EventType "tourn"]
[EventCountry "SVK"]
[SourceTitle "playchess.com"]
[Source "ChessBase"]
[SourceQuality "1"]
[TimeControl "40/5400+30:1800+30"]

1. e4 {[%emt 0:01:38]} e5 {[%emt 0:03:55]} 2. Nf3 {[%emt 0:00:15]} Nc6 {[%emt 0:00:24]} 3. Bc4 {[%emt 0:01:51]} Nf6 {[%emt 0:03:33]} 4. d3 {[%emt 0:06:58]} Bc5 {[%emt 0:02:28]} 5. O-O {[%emt 0:04:14]} O-O {[%emt 0:01:44]} 6. c3 {[%emt 0:03:12]} d6 {[%emt 0:04:25]} 7. Bg5 {[%emt 0:08:26]} a6 {[%emt 0:07:57]} 8. a4 {[%emt 0:05:12]} h6 {[%emt 0:03:43]} 9. Bh4 {[%emt 0:01:21]} g5 {[%emt 0:07:08]} 10. Nxg5 {[%emt 0:26:39]} hxg5 {[%emt 0:00:26]} 11. Bxg5 {[%emt 0:00:14]} Kg7 {[%emt 0:05:21]} 12. Qf3 {[%emt 0:05:53]} Rh8 {[%emt 0:08:46]} 13. Nd2 {[%emt 0:07:04]} Kg6 {[%emt 0:13:17]} 14. Be3 {[%emt 0:12:34]} Kg7 {[%emt 0:07:29]} 15. Bg5 {[%emt 0:04:40]} Kg6 {[%emt 0:04:13]} 16. Be3 {[%emt 0:01:21]} Kg7 {[%emt 0:03:18]} 17. Bg5 1/2-1/2

[Event "SVK-ch GM 2018"]
[Site "Banska Stiavnica"]
[Date "2018.07.15"]
[Round "9"]
[White "Zvarik, Martin"]
[Black "Mazur, Stefan"]
[Result "0-1"]
[ECO "C77"]
[WhiteElo "2280"]
[BlackElo "2425"]
[Annotator "NA"]
[PlyCount "52"]
[EventDate "2018.07.07"]
[EventType "tourn"]
[EventCountry "SVK"]
[SourceTitle "playchess.com"]
[Source "ChessBase"]
[SourceQuality "1"]
[TimeControl "40/5400+30:1800+30"]

1. e4 {[%emt 0:09:30]} e5 {[%emt 0:00:00]} 2. Nf3 {[%emt 0:00:19]} Nc6 {[%emt 0:00:00]} 3. Bb5 {[%emt 0:00:42]} a6 {[%emt 0:00:00]} 4. Ba4 {[%emt 0:00:04]} Nf6 {[%emt 0:00:00]} 5. d3 {[%emt 0:00:03]} d6 {[%emt 0:00:21]} 6. h3 {[%emt 0:01:57]} g6 {[%emt 0:00:18]} 7. Be3 {[%emt 0:00:59]} Bg7 {[%emt 0:00:09]} 8. c4 {[%emt 0:03:07]} O-O {[%emt 0:00:49]} 9. Qd2 {[%emt 0:12:36]} Nd7 {[%emt 0:00:53]} 10. b4 {[%emt 0:01:27]} Nd4 {[%emt 0:01:28]} 11. Nc3 {[%emt 0:10:17]} a5 {[%emt 0:05:01]} 12. Bxd7 {[%emt 0:09:48]} Nxf3+ {[%emt 0:08:26]} 13. gxf3 {[%emt 0:00:07]} axb4 {[%emt 0:00:22]} 14. Bxc8 {[%emt 0:04:11]} bxc3 {[%emt 0:00:12]} 15. Qxc3 {[%emt 0:00:03]} Qxc8 {[%emt 0:01:11]} 16. Bc1 {[%emt 0:03:13]} Qe6 {[%emt 0:01:44]} 17. a3 {[%emt 0:08:57]} f5 {[%emt 0:01:40]} 18. Be3 {[%emt 0:02:54]} c6 {[%emt 0:04:40]} 19. Qb4 {[%emt 0:01:03]} Rf7 {[%emt 0:01:08]} 20. h4 {[%emt 0:05:29]} fxe4 {[%emt 0:02:03]} 21. fxe4 {[%emt 0:02:00]} Qg4 {[%emt 0:07:54]} 22. h5 {[%emt 0:02:04]} d5 {[%emt 0:00:37]} 23. hxg6 {[%emt 0:04:04]} hxg6 {[%emt 0:00:12]} 24. cxd5 {[%emt 0:00:43]} cxd5 {[%emt 0:00:14]} 25. Ra2 {[%emt 0:03:08]} d4 {[%emt 0:00:53]} 26. Bc1 {[%emt 0:00:55]} Qf3 {[%emt 0:04:44]} 0-1